[Event "SixDays Budapest GM-A May 2024"]
[Site "Budapest"]
[Date "2024.05.17"]
[Round "3.4"]
[White "Aczel, Gergely"]
[Black "Tan, Jun Ying"]
[Result "1-0"]
[ECO "D11"]
[WhiteElo "2493"]
[BlackElo "2307"]
[Annotator "TA"]
[PlyCount "159"]
[EventDate "2024.05.15"]
[EventType "tourn"]
[EventCountry "HUN"]
[SourceTitle "playchess.com"]
[Source "ChessBase"]
[SourceQuality "1"]
[TimeControl "40/5400+30:1800+30"]

{[%evp 49,158,0,0,-3,-14,-25,0,-53,-38,-51,-8,-36,-9,-8,0,0,0,0,0,0,0,0,0,0,0,0,0,0,0,0,0,0,0,0,0,0,0,0,0,0,0,0,0,0,0,0,0,0,0,0,8,7,7,0,0,0,0,0,8,8,8,8,8,8,8,8,8,8,8,8,29951,29956,29957,29957,29966,29963,29969,29970,29970,29971,29972,29973,29974,29975,29975,29976,29980,29977,29977,29978,29978,29979,29979,29980,29982,29983,29983,29983,29985,29986,29988,29989,29990,29987,29993,29994,29997,29998,29998,29999,29999]} 1. Nf3 {[%emt 0:01:02]} d5 {[%emt 0:00:14]} 2. d4 {[%emt 0:00:58]} c6 {[%emt 0:00:10]} 3. c4 {[%emt 0:00:11]} Nf6 {[%emt 0:00:15]} 4. e3 {[%emt 0:00:08]} a6 {[%emt 0:00:06]} 5. Nbd2 {[%emt 0:02:26]} Bf5 {[%emt 0:00:29]} 6. Nh4 {[%emt 0:00:21]} Be4 {[%emt 0:00:10]} 7. Qb3 {[%emt 0:00:25]} Ra7 {[%emt 0:01:40]} 8. Nxe4 {[%emt 0:09:05]} Nxe4 {[%emt 0:00:29]} 9. Nf3 {[%emt 0:06:20]} e6 {[%emt 0:00:28]} 10. Bd3 {[%emt 0:11:54]} f5 {[%emt 0:02:07]} 11. g4 {[%emt 0:07:58]} Qa5+ {[%emt 0:33:55]} 12. Bd2 {[%emt 0:18:13]} Nxd2 {[%emt 0:05:59]} 13. Nxd2 {[%emt 0:00:02]} fxg4 {[%emt 0:08:26]} 14. h3 {[%emt 0:10:09]} Bb4 {[%emt 0:13:03]} 15. O-O-O {[%emt 0:00:28]} b5 {[%emt 0:00:21]} 16. cxd5 {[%emt 0:10:15]} cxd5 {[%emt 0:01:23]} 17. hxg4 {[%emt 0:01:43]} Rc7+ {[%emt 0:02:47]} 18. Bc2 {[%emt 0:00:03]} Ke7 {[%emt 0:12:42]} 19. a3 {[%emt 0:00:10]} Rhc8 {[%emt 0:03:43]} 20. Qxb4+ {[%emt 0:03:02]} Qxb4 {[%emt 0:00:04]} 21. axb4 {[%emt 0:00:03]} Rxc2+ {[%emt 0:00:04]} 22. Kb1 {[%emt 0:00:06]} h6 {[%emt 0:00:45]} 23. e4 {[%emt 0:02:51]} R2c7 {[%emt 0:03:25]} 24. Rhe1 {[%emt 0:00:41]} Kf7 {[%emt 0:01:25]} 25. Nf3 {[%emt 0:10:27]} Nc6 {[%emt 0:00:44]} 26. exd5 {[%emt 0:01:23]} exd5 {[%emt 0:00:02]} 27. Ne5+ {[%emt 0:00:06]} Kg8 {[%emt 0:01:14]} 28. Nxc6 {[%emt 0:00:49]} ({Better is} 28. f4 $11) 28... Rxc6 $15 {[%emt 0:00:00]} 29. Re5 {[%emt 0:00:15]} Rd6 {[%emt 0:04:42]} 30. Rd3 {[%emt 0:01:37]} Rc4 {[%emt 0:01:49]} 31. b3 {[%emt 0:00:24]} Rc7 {[%emt 0:00:01]} (31... Rxb4 $2 {is the wrong capture.} 32. Re8+ Kf7 33. Ra8 $18) 32. Kb2 {[%emt 0:00:40]} Kf7 {[%emt 0:00:49]} 33. f4 {[%emt 0:00:30]} Kf6 {[%emt 0:01:04]} 34. Rc3 {[%emt 0:00:29]} Rxc3 {[%emt 0:00:18]} 35. Kxc3 {[%emt 0:00:01]} g6 {[%emt 0:00:55]} 36. Kd3 {[%emt 0:00:31]} Kf7 {[%emt 0:00:37]} 37. f5 {[%emt 0:02:31]} gxf5 {[%emt 0:00:48]} 38. Rxf5+ {[%emt 0:00:10]} ({Of course not} 38. gxf5 h5 $15) 38... Kg6 {[%emt 0:01:35]} 39. Re5 {[%emt 0:00:59]} Kf6 {[%emt 0:00:13]} 40. Rh5 {[%emt 0:00:31]} Kg7 {[%emt 0:00:42]} 41. Re5 {[%emt 0:30:31]} Kf6 {[%emt 0:30:08]} 42. Kd2 {[%emt 0:00:29]} Rd7 {[%emt 0:00:43]} 43. Rf5+ {[%emt 0:00:26]} Kg6 {[%emt 0:00:24]} 44. Ke3 {[%emt 0:00:28]} Re7+ {[%emt 0:00:35]} 45. Kd3 {[%emt 0:00:02]} Rd7 {[%emt 0:00:24]} 46. Rf8 {[%emt 0:00:33]} Rd6 {[%emt 0:00:27]} 47. Rf5 {[%emt 0:01:00]} Kg7 {[%emt 0:00:13]} 48. Ke3 {[%emt 0:00:18]} Re6+ {[%emt 0:00:24]} 49. Kf3 {[%emt 0:00:38]} Rc6 {[%emt 0:01:21]} 50. Rxd5 {[%emt 0:00:09]} Rc3+ {[%emt 0:00:08]} 51. Kf4 {[%emt 0:00:24]} Rxb3 52. Rd7+ {[%emt 0:00:02]} Kf6 {[%emt 0:01:20]} 53. Rd6+ {[%emt 0:00:08]} Ke7 {[%emt 0:00:32]} 54. Rxa6 {[%emt 0:00:29]} Rxb4 {[%emt 0:00:05]} 55. Ke5 {[%emt 0:00:04]} Rb1 {[%emt 0:00:38]} 56. Rxh6 {[%emt 0:00:08]} Re1+ {[%emt 0:00:46]} 57. Kd5 {[%emt 0:00:56]} b4 {[%emt 0:00:36]} 58. Rh7+ {[%emt 0:00:20]} Kf6 {[%emt 0:00:26]} 59. Rb7 {[%emt 0:01:25]} Rg1 $2 {[%emt 0:00:06][%mdl 8192]} (59... Rb1 $11) 60. Rxb4 {[%emt 0:00:30]} Rxg4 {[%emt 0:00:02] [#]} 61. Rb7 $1 {[%emt 0:00:15]} Rh4 {[%emt 0:01:25]} 62. Kc5 {[%emt 0:00:52]} Rh1 {[%emt 0:00:28]} 63. d5 {[%emt 0:00:53]} Rc1+ {[%emt 0:00:26]} 64. Kd6 {[%emt 0:00:07]} Ra1 {[%emt 0:00:34]} 65. Kd7 {[%emt 0:00:58]} Ra8 {[%emt 0:00:31]} 66. d6 {[%emt 0:00:31]} Kf7 {[%emt 0:00:19]} 67. Rc7 {[%emt 0:00:40]} Rb8 {[%emt 0:00:39]} 68. Ra7 {[%emt 0:00:08]} Rh8 {[%emt 0:00:35]} 69. Ra1 {[%emt 0:00:16]} Rh2 {[%emt 0:00:28]} 70. Rf1+ {[%emt 0:00:08]} Kg7 {[%emt 0:00:19]} 71. Kd8 {[%emt 0:00:11]} Rh8+ {[%emt 0:00:41]} 72. Ke7 {[%emt 0:00:07]} Rh2 {[%emt 0:00:29]} 73. Rg1+ {[%emt 0:00:06]} Kh7 {[%emt 0:00:28]} 74. Re1 {[%emt 0:00:23]} Ra2 {[%emt 0:00:29]} 75. d7 {[%emt 0:00:07]} Ra7 {[%emt 0:00:31]} 76. Ke8 {[%emt 0:00:06]} Ra6 {[%emt 0:00:35]} 77. d8=Q {[%emt 0:00:20]} Re6+ {[%emt 0:00:27]} 78. Rxe6 {[%emt 0:00:11]} Kg7 {[%emt 0:00:02]} 79. Qg5+ {[%emt 0:00:09]} Kh7 {[%emt 0:00:01]} 80. Rh6# {[%emt 0:00:08]} 1-0

[Event "SixDays Budapest GM-A May 2024"]
[Site "Budapest"]
[Date "2024.05.17"]
[Round "3.5"]
[White "Bai, Adelard"]
[Black "Krastev, Alexander"]
[Result "1-0"]
[ECO "E45"]
[WhiteElo "2376"]
[BlackElo "2458"]
[Annotator "TA"]
[PlyCount "69"]
[EventDate "2024.05.15"]
[EventType "tourn"]
[EventCountry "HUN"]
[SourceTitle "playchess.com"]
[Source "ChessBase"]
[SourceQuality "1"]
[TimeControl "40/5400+30:1800+30"]

{[%evp 12,69,14,14,32,-20,-21,-19,-22,-44,-32,-54,-53,-50,0,19,91,158,139,132,140,138,109,130,104,126,110,100,90,43,43,44,48,32,43,44,448,440,471,439,898,881,1533,1520,1430,1422,29983,29984,29984,29985,29985,29986,29983,5406,29984,29985,29988,29989,29992,29993]} 1. d4 {[%emt 0:00:06]} Nf6 {[%emt 0:01:40]} 2. c4 {[%emt 0:00:06]} e6 {[%emt 0:00:03]} 3. Nc3 {[%emt 0:00:09]} Bb4 {[%emt 0:00:07]} 4. e3 {[%emt 0:00:07]} b6 {[%emt 0:00:04]} 5. Nge2 {[%emt 0:00:26]} Ba6 {[%emt 0:00:05]} 6. Ng3 {[%emt 0:00:41]} O-O {[%emt 0:09:34]} 7. e4 {[%emt 0:00:37]} c5 {[%emt 0:00:41]} 8. a3 {[%emt 0:13:33]} (8. d5 $14) 8... Bxc3+ $11 {[%emt 0:05:05]} 9. bxc3 {[%emt 0:00:02]} Nc6 {[%emt 0:01:36] The position is equal.} 10. Bg5 {[%emt 0:04:21] And now Nh5 would win.} h6 {[%emt 0:01:05]} 11. h4 {[%emt 0:00:48][%cal Oe4e5] aiming for e5!} cxd4 {[%emt 0:26:38]} (11... hxg5 12. hxg5 cxd4 13. e5 Nxe5 14. gxf6 $18) 12. cxd4 {[%emt 0:04:51][%cal Oe4e5] e5! would now be deadly.} hxg5 {[%emt 0:00:22]} ({Better is} 12... d6 $1 $15) 13. hxg5 {[%emt 0:01:00][%cal Oe4e5]} g6 {[%emt 0:00:03]} 14. e5 $1 $16 {[%emt 0:25:57]} Nh7 {[%emt 0:11:00]} 15. Qg4 {[%emt 0:10:23] Qh4 would kill now.} Nxg5 {[%emt 0:05:17] [#]} (15... Qxg5 $2 16. Qh3 Rfe8 17. Qxh7+ Kf8 18. Ne4 $18) 16. Ne4 $1 {[%emt 0:02:33] Threatening mate with Nf6+.} (16. Qh4 $2 f5 17. f4 Nf3+ 18. gxf3 Qxh4 (18... Nxd4 19. Qh7#) 19. Rxh4 Nxd4 $19) 16... Kg7 {[%emt 0:07:08]} (16... Nxe4 17. Qh3) 17. Nxg5 $40 {[%emt 0:00:26][%mdl 128] White is out for blood.} (17. Qxg5 Qxg5 (17... Nxd4 18. Qh6+ Kg8 19. Qh8#) 18. Nxg5 Rh8 (18... Nxd4 19. Rd1 $16) 19. Rxh8 Rxh8 $17) 17... Rh8 {[%emt 0:00:03] Prevents Rh7+.} 18. Rxh8 {[%emt 0:01:52]} Qxh8 {[%emt 0:00:02]} 19. Qf4 {[%emt 0:01:59] White wants to mate with Qf6+.} Rf8 {[%emt 0:01:40][%cal Ba8f8,Bf8f6,Bf6f5][%mdl 32]} 20. Rd1 {[%emt 0:05:30] White is more active.} ({White should try} 20. d5 $16 Nd8 21. Ne4) 20... f6 $14 {[%emt 0:01:43]} 21. exf6+ {[%emt 0:01:41]} Rxf6 {[%emt 0:00:01]} 22. Qd6 {[%emt 0:03:44]} Qe8 {[%emt 0:00:05] Hoping for ...e5.} 23. Qh2 {[%emt 0:01:32] Threatens to win with Rd3.} Qg8 $2 {[%emt 0:08:34][%mdl 8192] [#] A mistake that costs the game.} (23... Qh8 $14 24. Qxh8+ Kxh8) 24. Rd3 $1 $18 {[%emt 0:01:50] Rh3 is the strong threat.} Rf5 {[%emt 0:12:23]} (24... Bxc4 $2 25. Rh3 e5 26. Rh7+ (26. dxe5 Rf5 $18) 26... Kf8 27. Rh8 (27. dxe5 Rf5 $18) (27. Rxd7 Ke8 $18)) 25. f4 {[%emt 0:00:35] Strongly threatening Rh3.} Kf6 {[%emt 0:07:28]} ({Reject} 25... Bxc4 26. Rh3 Bxf1 27. Rh7+ (27. Kxf1 e5 $16) 27... Kf8 28. Kxf1 (28. Rh8 Qxh8 29. Qxh8+ Ke7 $18)) (25... Nd8 $142 26. Rh3 Nf7 27. Rh7+ Kf8 28. Nxf7 (28. Bd3 Rxg5 29. fxg5 Bc8 $18) 28... Rh5 29. Rxh5 gxh5) 26. Rh3 {[%emt 0:02:00]} Qb8 {[%emt 0:00:05]} 27. Ne4+ {[%emt 0:02:25]} Ke7 {[%emt 0:00:02][%cal Bf6e7,Be7e8,Be8f8][%mdl 32]} 28. Rh7+ {[%emt 0:01:25]} Ke8 {[%emt 0:00:01]} 29. Rh8+ {[%emt 0:00:23]} Rf8 {[%emt 0:00:01]} 30. Rxf8+ {[%emt 0:00:38]} Kxf8 {[%emt 0:00:01]} 31. Qh8+ {[%emt 0:00:07]} Ke7 {[%emt 0:00:04]} 32. Qf6+ {[%emt 0:00:05]} Ke8 {[%emt 0:00:03]} 33. Bd3 {[%emt 0:00:13] White mates.} d5 {[%emt 0:02:44]} 34. Qxe6+ {[%emt 0:00:21]} Ne7 {[%emt 0:00:36]} 35. Nf6+ {[%emt 0:00:09] Weighted Error Value: White=0.06 (flawless) /Black=0.48.  Loses game:     	---       	Black=1      Mistake:       	White=2     	Black=3      Inaccurate:     	---       	Black=1      OK:         	White=8     	Black=4      Best:        	---       	Black=7      Strong:       	White=3     	---} 1-0

[Event "SixDays Budapest GM-A May 2024"]
[Site "Budapest"]
[Date "2024.05.18"]
[Round "5.1"]
[White "Sathvik Adiga"]
[Black "Ramoutar, Alan-Safar"]
[Result "1/2-1/2"]
[ECO "B15"]
[WhiteElo "2398"]
[BlackElo "2360"]
[Annotator "TA"]
[PlyCount "148"]
[EventDate "2024.05.15"]
[EventType "tourn"]
[EventCountry "HUN"]
[SourceTitle "playchess.com"]
[Source "ChessBase"]
[SourceQuality "1"]
[TimeControl "40/5400+30:1800+30"]

{[%evp 74,148,103,100,79,27,27,27,88,88,104,104,104,114,681,667,937,852,812,857,1010,1006,1168,828,1427,1307,1394,1383,1143,120,120,120,120,0,125,8,8,8,8,8,8,8,8,8,8,0,8,0,8,8,8,8,8,8,8,8,8,8,8,8,8,8,8,8,8,8,8,8,8,8,8,8,8,8,8,8,8]} 1. e4 {[%emt 0:00:02]} c6 {[%emt 0:01:09]} 2. d4 {[%emt 0:00:01]} d5 {[%emt 0:00:14]} 3. Nc3 {[%emt 0:00:02]} dxe4 {[%emt 0:00:22]} 4. Nxe4 {[%emt 0:00:02]} Nf6 {[%emt 0:00:14]} 5. Nxf6+ {[%emt 0:00:03]} exf6 {[%emt 0:00:14]} 6. c3 {[%emt 0:00:01]} Bd6 {[%emt 0:00:24]} 7. Bd3 {[%emt 0:00:02]} O-O {[%emt 0:00:18]} 8. Qc2 {[%emt 0:00:02]} Re8+ {[%emt 0:00:15]} 9. Ne2 {[%emt 0:00:02]} h5 {[%emt 0:00:18]} 10. O-O {[%emt 0:00:02]} h4 {[%emt 0:00:17]} 11. h3 {[%emt 0:00:02]} Nd7 {[%emt 0:00:26]} 12. Bd2 {[%emt 0:00:02]} Nf8 {[%emt 0:00:17]} 13. Rae1 {[%emt 0:00:02]} Bc7 {[%emt 0:00:53]} 14. f4 {[%emt 0:00:03]} Qd6 {[%emt 0:00:12]} 15. c4 {[%emt 0:04:03]} f5 {[%emt 0:00:09]} 16. Bxf5 {[%emt 0:05:29]} Bxf5 {[%emt 0:00:13]} 17. Qxf5 {[%emt 0:00:03]} Re6 {[%emt 0:00:11]} 18. d5 {[%emt 0:17:07]} Ree8 {[%emt 0:00:22]} 19. Qd3 {[%emt 0:06:59]} cxd5 {[%emt 0:05:59]} 20. cxd5 {[%emt 0:01:57]} Ng6 {[%emt 0:08:56]} 21. Rd1 {[%emt 0:10:47]} Rad8 {[%emt 0:08:30]} 22. Nc3 {[%emt 0:01:37]} Qb4 {[%emt 0:07:58]} 23. Kh1 {[%emt 0:12:46]} a6 {[%emt 0:04:56]} 24. b3 {[%emt 0:04:09]} Re7 {[%emt 0:03:25]} 25. Qc4 {[%emt 0:16:52]} Qd6 {[%emt 0:10:12]} 26. Bc1 {[%emt 0:11:27]} b5 {[%emt 0:01:21]} 27. Qc6 {[%emt 0:02:52]} Red7 {[%emt 0:09:48]} 28. a3 {[%emt 0:02:24]} Ne7 {[%emt 0:07:12]} 29. Qxd6 {[%emt 0:00:14]} Bxd6 {[%emt 0:00:28]} 30. Ne4 {[%emt 0:03:18]} Nf5 {[%emt 0:01:50]} 31. Rf3 {[%emt 0:00:38]} Re8 {[%emt 0:05:10]} 32. Nxd6 {[%emt 0:00:33]} Rxd6 {[%emt 0:00:11]} 33. Rfd3 {[%emt 0:00:48]} Red8 {[%emt 0:06:02]} 34. Kg1 {[%emt 0:00:08]} Ne7 {[%emt 0:00:15]} 35. Kf2 {[%emt 0:00:33]} Rxd5 {[%emt 0:00:21]} 36. Rxd5 {[%emt 0:00:04]} Rxd5 {[%emt 0:00:11]} 37. Rxd5 {[%emt 0:00:06]} Nxd5 {[%emt 0:00:02]} 38. Kf3 {[%emt 0:00:16]} f5 {[%emt 0:00:42] [#]} 39. Bd2 {[%emt 0:00:07]} ({White should try} 39. Ke2 $1 $16) 39... Kf7 $11 {[%emt 0:06:24]} 40. Be1 {[%emt 0:00:04]} Ke6 {[%emt 0:02:29]} (40... Ne7 $1 $11) 41. Bxh4 $16 {[%emt 0:30:13]} Nc3 {[%emt 0:35:00]} 42. Bf2 {[%emt 0:02:29]} Kd5 {[%emt 0:01:16]} 43. Be1 {[%emt 0:01:05]} Nb1 $2 {[%emt 0:02:17][%mdl 8192]} (43... Ne4 $16) 44. Bb4 {[%emt 0:00:45]} a5 {[%emt 0:00:43]} 45. Bxa5 {[%emt 0:00:03]} Nxa3 {[%emt 0:00:06]} 46. g4 {[%emt 0:01:45]} fxg4+ {[%emt 0:00:12]} 47. hxg4 {[%emt 0:00:02]} Nc2 {[%emt 0:00:52]} 48. Bc3 {[%emt 0:00:28]} g6 {[%emt 0:00:23]} 49. f5 {[%emt 0:00:59]} gxf5 {[%emt 0:00:08]} 50. gxf5 {[%emt 0:00:01]} b4 {[%emt 0:01:08]} 51. Bb2 $2 {[%emt 0:01:06]} (51. Bf6 $18 {is the precise move to win. Black must now prevent Kf4.} Na3 52. Ke3) 51... Ne1+ $16 {[%emt 0:00:57]} 52. Ke2 {[%emt 0:00:08]} Ng2 {[%emt 0:00:16]} 53. Kf3 {[%emt 0:01:00]} Ne1+ {[%emt 0:00:02] [#]} 54. Kg4 {[%emt 0:00:25]} (54. Ke3 $1 $16 {Hoping for Bf6.} Ng2+ 55. Kf3 Ne1+) 54... Nd3 $1 $11 {[%emt 0:00:33]} 55. Ba1 {[%emt 0:00:44]} Kd6 {[%emt 0:00:26]} 56. Kh5 {[%emt 0:00:42]} Ke7 $1 {[%emt 0:00:56]} 57. Kg6 {[%emt 0:00:06]} (57. Kg5 $5) 57... Nf4+ {[%emt 0:00:21]} 58. Kg7 {[%emt 0:00:38]} Nh5+ {[%emt 0:01:01]} 59. Kg6 {[%emt 0:00:06]} (59. Kh6 $5 Nf4 $8 60. Kg7 Nh5+ 61. Kh6 $11) 59... Nf4+ {[%emt 0:00:05]} 60. Kg7 {[%emt 0:00:05]} (60. Kh6 $5) 60... Nh5+ {[%emt 0:00:05]} 61. Kh6 {[%emt 0:00:03]} (61. Kh7 $5) 61... Nf4 $1 {[%emt 0:00:42]} 62. Bd4 {[%emt 0:00:12]} (62. Be5 $5 Nd3 $8 63. Bd4 $11) 62... Kf7 {[%emt 0:00:19]} 63. Kg5 {[%emt 0:00:05]} Nd3 {[%emt 0:03:24]} 64. Be3 {[%emt 0:00:04]} Ne1 $1 {[%emt 0:00:21]} 65. Kf4 {[%emt 0:02:58]} Nc2 $1 {[%emt 0:00:15]} 66. Bc5 {[%emt 0:00:21]} Na1 {[%emt 0:00:15]} 67. Bxb4 {[%emt 0:00:19]} Nxb3 {[%emt 0:00:01]} 68. Ke4 {[%emt 0:00:09]} Nc1 {[%emt 0:00:43]} 69. Bc3 $1 {[%emt 0:00:15]} Nb3 {[%emt 0:00:46]} 70. Kd5 {[%emt 0:00:04]} Nc1 {[%emt 0:00:06]} 71. Kc4 {[%emt 0:00:11]} Ne2 {[%emt 0:00:16]} 72. Be5 $1 {[%emt 0:00:03]} Ng3 {[%emt 0:00:18]} 73. Bxg3 {[%emt 0:00:04]} Kf6 {[%emt 0:00:02]} 74. Kd4 {[%emt 0:00:11]} Kxf5 {[%emt 0:00:05]} 1/2-1/2

[Event "SixDays Budapest GM-A May 2024"]
[Site "Budapest"]
[Date "2024.05.18"]
[Round "5.2"]
[White "Wadsworth, Matthew J"]
[Black "Sahib Singh"]
[Result "0-1"]
[ECO "A06"]
[WhiteElo "2470"]
[BlackElo "2291"]
[Annotator "TA"]
[PlyCount "116"]
[EventDate "2024.05.15"]
[EventType "tourn"]
[EventCountry "HUN"]
[SourceTitle "playchess.com"]
[Source "ChessBase"]
[SourceQuality "1"]
[TimeControl "40/5400+30:1800+30"]

{[%evp 39,116,-91,-78,-77,-68,-82,-77,-64,-72,-100,-75,-74,-91,-194,-206,-204,-200,-232,-239,-233,-217,-223,-208,-202,-160,-200,-179,-166,-179,-197,-196,-200,-185,-163,-89,-102,-57,-50,-35,-35,-37,-56,-53,-69,-77,-72,-78,-80,-69,-73,-80,-101,-28,-55,8,8,8,8,12,12,8,10,10,2,17,0,0,0,0,0,0,0,0,-8,-7,-14,-6,-29976,-29977]} 1. Nf3 {[%emt 0:00:04]} d5 {[%emt 0:03:04]} 2. g3 {[%emt 0:00:37]} Nd7 {[%emt 0:00:03]} 3. d4 {[%emt 0:00:20]} Nb6 {[%emt 0:00:04]} 4. Nbd2 {[%emt 0:00:08]} Nf6 {[%emt 0:00:56]} 5. Bg2 {[%emt 0:00:52]} Bf5 {[%emt 0:00:09]} 6. Nh4 {[%emt 0:00:29]} Bg4 {[%emt 0:05:49]} 7. h3 {[%emt 0:01:08]} Bh5 {[%emt 0:00:06]} 8. g4 {[%emt 0:18:36]} Bg6 {[%emt 0:00:06]} 9. Nxg6 {[%emt 0:00:25]} hxg6 {[%emt 0:00:06]} 10. c4 {[%emt 0:01:32]} c6 {[%emt 0:01:13]} 11. a4 {[%emt 0:06:43]} Nxc4 {[%emt 0:05:28]} 12. Nxc4 {[%emt 0:00:08]} dxc4 {[%emt 0:00:03]} 13. a5 {[%emt 0:01:27]} Rc8 {[%emt 0:01:07]} 14. Qc2 {[%emt 0:01:25]} Qxd4 {[%emt 0:09:42]} 15. Be3 {[%emt 0:00:17]} Qe5 {[%emt 0:02:47]} 16. Qxc4 {[%emt 0:06:27]} a6 {[%emt 0:07:42]} 17. Qb3 {[%emt 0:13:38]} Qc7 {[%emt 0:10:07]} 18. Ra4 {[%emt 0:02:48]} e6 {[%emt 0:01:31]} 19. Bf4 {[%emt 0:02:55]} e5 {[%emt 0:01:13]} 20. Bg3 {[%emt 0:02:53]} Bd6 {[%emt 0:00:23]} 21. O-O {[%emt 0:03:02]} O-O {[%emt 0:02:57]} 22. h4 {[%emt 0:02:26]} Nd7 {[%emt 0:00:43]} 23. Qc3 {[%emt 0:02:12]} Nc5 {[%emt 0:04:10]} 24. Rc4 {[%emt 0:01:00]} Ne6 {[%emt 0:00:39]} 25. e3 {[%emt 0:01:15]} f5 {[%emt 0:05:15]} 26. f4 {[%emt 0:04:02]} (26. Qb3 $17 {keeps fighting.}) 26... exf4 $19 {[%emt 0:07:55]} (26... fxg4 $2 27. fxe5 Rxf1+ 28. Bxf1 $18) 27. exf4 {[%emt 0:03:43]} fxg4 {[%emt 0:01:07]} 28. Qd3 {[%emt 0:02:47]} Rf5 {[%emt 0:12:01]} (28... Nxf4 29. Bxf4 Bxf4 (29... Rxf4 $2 30. Rcxf4 Bxf4 31. Qc4+ Kh7 32. Qxf4 $18) 30. Qxg6 $15) (28... Bxf4 29. Qxg6 (29. Bd5 Kh7 $11) 29... Rf6 30. Qxg4 $11) 29. Qe2 {[%emt 0:06:25]} Qf7 {[%emt 0:03:15]} (29... Nxf4 30. Rcxf4 Bxf4 (30... Rxf4 31. Bxf4 Bxf4 32. Qc4+ Kh7 33. Qxf4 $18) 31. Rxf4 (31. Qxg4 $2 Bxg3 32. Qxg6 Rxf1+ 33. Bxf1 Qe5 $19) 31... Rxf4 32. Qe6+ Kh7 33. Bxf4 Qxf4 34. Qxc8 $11) 30. Re4 {[%emt 0:01:53]} Nc5 {[%emt 0:01:39]} (30... Nxf4 31. Bxf4 Bxf4 32. Rexf4 Rxf4 33. Rxf4 Qxf4 34. Qe6+ Kh7 35. Qxc8 $11) 31. Rd4 {[%emt 0:00:40]} Bf8 {[%emt 0:05:24]} 32. Qxg4 {[%emt 0:01:40]} Nb3 {[%emt 0:00:39]} 33. Rd3 {[%emt 0:01:22]} Re8 $1 {[%emt 0:00:15]} (33... Nxa5 34. Be4 Re8 35. Bxf5 gxf5 36. Qf3) 34. Rfd1 {[%emt 0:01:38]} Nxa5 {[%emt 0:01:42]} 35. Rd7 {[%emt 0:02:25] [#]} Qf6 $1 {[%emt 0:00:28]} 36. Bf1 {[%emt 0:02:02]} Qe6 {[%emt 0:01:00]} (36... Qxb2 $2 37. Qxg6 Qb3 38. Qxf5 $18 (38. Qxe8 Qxg3+ 39. Bg2 Rf6 $11)) (36... Re4 $19 {[%cal Re4f4] And now ...Rexf4! would win.} 37. Bg2 Rexf4 38. Bxf4 Bc5+ 39. Kh2 Rxf4 40. Rd8+ Kh7) 37. Bd3 {[%emt 0:01:17]} Rf6 {[%emt 0:03:38]} (37... Qxd7 38. Bc4+ (38. Bxf5 $2 Qxf5 39. Qxf5 gxf5 $19) 38... Nxc4 39. Rxd7 $15) (37... Nc4 {keeps more tension.} 38. Bxf5 gxf5 39. Qh5 Ne3) 38. Qxe6+ {[%emt 0:01:46]} Rfxe6 {[%emt 0:00:04]} 39. f5 $1 {[%emt 0:00:49]} gxf5 $1 {[%emt 0:00:30]} 40. Bc7 {[%emt 0:01:01]} (40. Bxf5 Re3 41. R1d3 b5) 40... Bc5+ {[%emt 0:01:45]} 41. Kh2 {[%emt 0:30:52]} b6 $1 {[%emt 0:30:07]} 42. b4 {[%emt 0:00:24]} Bxb4 {[%emt 0:00:27]} 43. Bxb6 {[%emt 0:00:02]} Rh6 {[%emt 0:00:42]} 44. Kg3 {[%emt 0:01:59]} c5 {[%emt 0:02:03]} 45. Bc7 {[%emt 0:01:30]} Rg6+ {[%emt 0:02:05]} (45... Nc6 $17 {...Be1+ is the strong threat.} 46. Bf4 Rg6+ 47. Kh3 Rg4) 46. Kf3 $1 $11 {[%emt 0:00:18]} Nc6 {[%emt 0:00:07]} (46... Rf8 $15 47. Bd6 Rff6) 47. Bc4+ $1 $11 {[%emt 0:00:26]} Kh7 {[%emt 0:01:07]} 48. Bf7 {[%emt 0:00:21]} Ree6 {[%emt 0:00:32]} (48... Ne5+ 49. Bxe5 Rxe5 50. Bxg6+ Kxg6 51. Rg1+ Kh6 52. Rgxg7 $18 (52. Rdxg7 Re6 $16)) 49. h5 {[%emt 0:00:56]} Rgf6 {[%emt 0:00:15]} 50. Bxe6 {[%emt 0:00:24]} Rxe6 {[%emt 0:00:01]} 51. Kf4 {[%emt 0:00:33]} Rh6 {[%emt 0:00:53]} 52. R1d6 {[%emt 0:01:19]} (52. Rg1 $5 Bc3 $8 53. Rh1 $11 (53. Kxf5 Rxh5+ 54. Ke4 Nb4 $11) (53. Rg5 a5 $11)) 52... Nd4 {[%emt 0:00:16]} 53. Rxh6+ {[%emt 0:00:46]} Kxh6 {[%emt 0:00:04]} 54. Be5 {[%emt 0:00:18]} Bd2+ {[%emt 0:00:24]} 55. Kg3 {[%emt 0:00:04]} Kxh5 {[%emt 0:00:07]} 56. Rxg7 {[%emt 0:01:06]} f4+ {[%emt 0:00:08]} 57. Kh3 {[%emt 0:00:13]} Ne6 {[%emt 0:00:19]} 58. Bf6 $2 {[%emt 0:00:56][%mdl 8192]} (58. Rg8 $11) 58... Nxg7 {[%emt 0:00:07]} 0-1

[Event "SixDays Budapest GM-A May 2024"]
[Site "Budapest"]
[Date "2024.05.18"]
[Round "5.3"]
[White "Aczel, Gergely"]
[Black "Nagy, Gabor"]
[Result "1/2-1/2"]
[ECO "D30"]
[WhiteElo "2493"]
[BlackElo "2433"]
[Annotator "TA"]
[PlyCount "20"]
[EventDate "2024.05.15"]
[EventType "tourn"]
[EventCountry "HUN"]
[SourceTitle "playchess.com"]
[Source "ChessBase"]
[SourceQuality "1"]
[TimeControl "40/5400+30:1800+30"]

{[%evp 9,20,-3,0,0,8,-19,0,-23,0,0,17,13,11]} 1. d4 d5 2. c4 e6 3. Nf3 Nf6 4. Nbd2 c5 5. e3 Nc6 6. dxc5 Bxc5 7. Be2 O-O 8. O-O a6 9. a3 dxc4 10. Nxc4 b5 {An uneventful encounter.   Weighted Error Value: White=0.12 (very precise) /Black=0.15 (very precise) .  Inaccurate:     	White=1     	---        OK:         	---       	Black=1} 1/2-1/2